[Event "Israeli Women Championship 2022"]
[Site "Yosiah Arad"]
[Date "2022.12.05"]
[Round "1.1"]
[White "Efroimski, Marsel"]
[Black "Tashkinova, Sofiia"]
[Result "1-0"]
[ECO "C02"]
[WhiteElo "2470"]
[BlackElo "2006"]
[Annotator "TA"]
[PlyCount "69"]
[EventDate "2022.12.05"]
[EventType "tourn"]
[EventCountry "ISR"]
[SourceTitle "playchess.com"]
[Source "ChessBase"]
[SourceQuality "1"]
[TimeControl "40/5400+30:1800+30"]

{[%evp 12,69,19,12,18,9,69,74,77,39,16,-28,-12,-19,-13,-81,37,6,59,25,63,55,159,162,188,181,317,310,399,391,437,427,449,393,696,659,1339,1316,1264,981,1052,1026,1006,981,948,625,601,607,564,510,1639,1636,1605,1560,1470,1442,4894,2607,1737,1304]} 1. e4 {[%emt 0:00:01]} e6 {[%emt 0:00:08]} 2. d4 {[%emt 0:00:49]} d5 {[%emt 0:00:14]} 3. e5 {[%emt 0:00:04]} c5 {[%emt 0:00:27]} 4. c3 {[%emt 0:00:03]} Qb6 {[%emt 0:00:35]} 5. Nf3 {[%emt 0:00:05]} Nc6 {[%emt 0:00:51]} 6. a3 {[%emt 0:00:20]} Nh6 {[%emt 0:02:43]} 7. Bd3 $1 {[%emt 0:00:10][%mdl 4] is currently scoring better than 7.b4.} Bd7 {[%emt 0:08:05] C02: French: Advance Variation.} 8. O-O {[%emt 0:00:34]} Nf5 {[%emt 0:05:20] [#]} (8... cxd4 $11 9. b4 Rc8) 9. dxc5 $146 {[%emt 0:08:58]} ({Predecessor:} 9. Bxf5 exf5 10. Nbd2 cxd4 11. cxd4 Nxd4 12. Nxd4 Qxd4 13. Nf3 Qc5 14. b4 Qc4 15. Bb2 {1-0 (57) Oviedo,A (1618)-Hurtado Paredes,J Caracas 2015}) 9... Bxc5 {[%emt 0:06:42] White is better.} 10. g4 {[%emt 0:04:32]} Nh6 {[%emt 0:02:45]} 11. h3 {[%emt 0:00:09]} (11. b4 {keeps more tension.} Bxf2+ 12. Rxf2 Nxg4 13. Raa2) 11... Qc7 $1 {[%emt 0:03:03]} 12. b4 {[%emt 0:00:42] Against f6} Bb6 {[%emt 0:02:32] White should prevent ...f6.} 13. Qe2 {[%emt 0:08:11] [#]} (13. a4 $11 a5 14. g5) 13... Ng8 {[%emt 0:06:44]} (13... f6 $1 $17 {[%cal Rf6e5]} 14. Bf4 (14. Bxh6 gxh6 15. Nbd2 Nxe5 $17) 14... Nf7) 14. Bf4 $36 {[%emt 0:01:34][%mdl 2048] White has the initiative.} (14. Bb2 $5) 14... Nge7 {[%emt 0:01:46]} (14... h5 $11) 15. Kg2 {[%emt 0:01:29]} h5 {[%emt 0:02:26]} 16. Nbd2 {[%emt 0:00:30][%cal Bb1d2,Bd2c4,Bc4d6][%mdl 32]} g6 {[%emt 0:04:53] White now steadily converts the win.} ({Black should try} 16... a6 $14) 17. Bg5 {[%emt 0:01:56] White is more active.} a6 {[%emt 0:04:21]} 18. Rac1 {[%emt 0:00:37]} Na7 {[%emt 0:04:18]} (18... Kf8 $142 19. Bf6 Rh6) 19. c4 $18 {[%emt 0:02:23]} ({Resist} 19. Bf6 Rf8 20. c4 hxg4 $18) 19... dxc4 {[%emt 0:05:28]} 20. Nxc4 {[%emt 0:00:09] [#] Hoping for Nd6+.} Bc6 {[%emt 0:01:05]} 21. Nd6+ {[%emt 0:08:29]} Kf8 {[%emt 0:02:14]} 22. Be4 {[%emt 0:00:32] Threatens to win with Bf6.} Nac8 $2 {[%emt 0:03:06]} (22... Rh7 23. Be3 Kg8) 23. Qd2 {[%emt 0:05:14] Black must now prevent Bxc6. White is clearly winning.} Qd7 {[%emt 0:05:26]} 24. Bxc6 {[%emt 0:01:24]} Nxc6 {[%emt 0:00:38]} 25. Bf6 {[%emt 0:00:05]} Rh7 {[%emt 0:00:53]} 26. Ng5 {[%emt 0:00:12]} Kg8 {[%emt 0:01:27]} 27. Nxh7 {[%emt 0:00:17]} Kxh7 {[%emt 0:00:12]} 28. gxh5 {[%emt 0:00:07] White wants to mate with Qg5.} Nxd6 {[%emt 0:00:53]} 29. hxg6+ {[%emt 0:00:30]} fxg6 {[%emt 0:00:07]} 30. Qxd6 {[%emt 0:00:11]} Qf7 {[%emt 0:01:05]} (30... Qxd6 $142 31. exd6 Rf8) 31. Rc4 {[%emt 0:01:13][%cal Bc1c4,Bc4g4,Bg4g5,Bg5g7][%mdl 32] Rh4+ would kill now.} g5 {[%emt 0:01:10] Inhibits Rh4+.} 32. Qd3+ {[%emt 0:00:06]} Kg8 {[%emt 0:02:11]} 33. Rg4 {[%emt 0:00:49]} ({Weaker is} 33. Bxg5 Nxe5 34. Qe4 Nxc4 $16) 33... Bd8 {[%emt 0:00:14]} 34. Rxg5+ {[%emt 0:00:07]} Kf8 {[%emt 0:00:05]} 35. Rg7 {[%emt 0:00:47] Weighted Error Value: White=0.41/Black=0.62} 1-0

[Event "Israeli Women Championship 2022"]
[Site "Yosiah Arad"]
[Date "2022.12.05"]
[Round "1.1"]
[White "Brusilovski, Lena"]
[Black "Orian, Noga"]
[Result "*"]
[WhiteElo "1800"]
[BlackElo "1947"]
[Annotator "TA"]
[PlyCount "29"]
[EventDate "2022.12.05"]
[EventType "tourn"]
[EventCountry "ISR"]
[SourceTitle "playchess.com"]
[Source "ChessBase"]
[SourceQuality "1"]
[TimeControl "40/5400+30:1800+30"]

{[%evp 10,11,0,0]} 1. e4 {[%emt 0:00:01]} e6 {[%emt 0:00:08]} 2. d4 {[%emt 0:00:49]} d5 {[%emt 0:00:14]} 3. e5 {[%emt 0:00:04]} c5 {[%emt 0:00:27]} 4. c3 {[%emt 0:00:03]} Qb6 {[%emt 0:00:35]} 5. Nf3 {[%emt 0:00:05]} Nc6 {[%emt 0:00:51]} 6. a3 {[%emt 0:00:20] [#]} {Predecessor:} f6 $146 {C02: French: Advance Variation.} 7. Bd3 fxe5 8. dxe5 c4 9. Bc2 g6 10. Qe2 Bg7 11. Be3 Qc7 12. Bf4 Nge7 13. Nbd2 O-O 14. g3 b5 15. h4 {½-½ (67) Anand,V (2756)-Korobov,A (2672) Mayrhofen 2022} *

[Event "Israeli Women Championship 2022"]
[Site "Yosiah Arad"]
[Date "2022.12.05"]
[Round "1.2"]
[White "Shvayger, Yuliya"]
[Black "Ovechkin, Lilia"]
[Result "1-0"]
[ECO "B06"]
[WhiteElo "2350"]
[BlackElo "1680"]
[Annotator "TA"]
[PlyCount "57"]
[EventDate "2022.12.05"]
[EventType "tourn"]
[EventCountry "ISR"]
[SourceTitle "playchess.com"]
[Source "ChessBase"]
[SourceQuality "1"]
[TimeControl "40/5400+30:1800+30"]

{[%evp 9,57,25,42,0,16,13,18,-2,27,24,52,-13,52,50,76,30,55,0,104,52,211,197,198,194,469,470,473,497,506,486,487,468,498,491,495,497,643,591,589,597,592,597,596,579,617,600,836,820,714,746]} 1. e4 {[%emt 0:00:04]} d6 {[%emt 0:00:29]} 2. d4 {[%emt 0:00:17]} g6 {[%emt 0:00:15]} 3. Nc3 {[%emt 0:01:02]} Bg7 {[%emt 0:01:55]} 4. Be3 {[%emt 0:00:09]} a6 {[%emt 0:00:42]} 5. h3 {[%emt 0:02:26]} b5 {[%emt 0:00:45]} 6. g4 {[%emt 0:02:01] B06: Modern Defence.} Nd7 {[%emt 0:14:02]} 7. Bg2 {[%emt 0:00:51][%cal Oe4e5]} Bb7 {[%emt 0:00:19] Against e5} 8. Nge2 {[%emt 0:07:54] The position is equal.} c5 {[%emt 0:02:20]} 9. O-O {[%emt 0:02:41]} b4 {[%emt 0:06:37]} 10. Nb1 {[%emt 0:02:40] [#]} (10. Na4 $1 $14) 10... Qc7 $146 {[%emt 0:11:38]} (10... Ngf6 $11) ({Predecessor:} 10... Ngf6 11. Nd2 cxd4 12. Bxd4 O-O 13. Ng3 Qc7 14. Rc1 Nc5 15. g5 Nh5 16. Bxg7 Nxg7 {0-1 (22) Thorhallsson,T (2499)-Bacrot,E (2561) Bermuda 1999}) 11. c3 {[%emt 0:03:29]} a5 {[%emt 0:00:46]} 12. Nd2 {[%emt 0:01:35]} (12. a3 $16) 12... e6 {[%emt 0:04:54]} 13. f4 {[%emt 0:04:48]} ({White should play} 13. dxc5 $14 dxc5 14. Nc4) 13... f5 {[%emt 0:05:20]} (13... Ne7 $11) 14. Qb3 {[%emt 0:12:30]} (14. dxc5 $16 {aiming for Nc4.} Nxc5 15. Nc4) 14... c4 $2 {[%emt 0:01:37] [#] A mistake that costs the game.} (14... Ne7 $1 $14) 15. Qxc4 $18 {[%emt 0:01:55]} Qxc4 {[%emt 0:00:26]} 16. Nxc4 {[%emt 0:00:02]} Ba6 $2 {[%emt 0:02:12]} (16... Ra6 {was called for.} 17. e5 Bxg2) 17. Nxd6+ {[%emt 0:00:19] White is clearly winning.} Ke7 {[%emt 0:00:21]} 18. e5 {[%emt 0:00:02]} ({Less strong is} 18. exf5 Ngf6 $18) 18... Bxe2 {[%emt 0:05:48]} 19. Bxa8 {[%emt 0:02:29]} Bxf1 {[%emt 0:05:02]} 20. Kxf1 {[%emt 0:00:13][%cal Bg1f1,Bf1e2,Be2d3][%mdl 32]} ({Don't play} 20. Rxf1 Nh6 21. Bf3 bxc3 22. bxc3 Nf7 $18) 20... fxg4 {[%emt 0:00:32]} 21. hxg4 {[%emt 0:00:10]} Nh6 {[%emt 0:00:21][%cal Oh6g4]} 22. Bf3 {[%emt 0:00:15]} Rf8 {[%emt 0:03:16]} 23. Ke2 {[%emt 0:00:30]} Nf7 {[%emt 0:03:23]} 24. Nc4 {[%emt 0:00:43]} bxc3 {[%emt 0:01:41]} 25. bxc3 {[%emt 0:00:05]} a4 {[%emt 0:04:03]} 26. Rb1 {[%emt 0:01:01] [#] Rb7 is the strong threat.} Rc8 {[%emt 0:02:17]} 27. Kd3 {[%emt 0:00:35]} Rd8 {[%emt 0:01:33]} 28. Rb7 {[%emt 0:00:22]} Kf8 {[%emt 0:00:31]} 29. Kc2 {[%emt 0:01:01] Weighted Error Value: White=0.22 (precise) /Black=0.44} 1-0

[Event "Israeli Women Championship 2022"]
[Site "Yosiah Arad"]
[Date "2022.12.05"]
[Round "1.3"]
[White "Kochavi, Dana"]
[Black "Levitan, Ronit"]
[Result "0-1"]
[ECO "C90"]
[WhiteElo "1928"]
[BlackElo "1989"]
[Annotator "TA"]
[PlyCount "72"]
[EventDate "2022.12.05"]
[EventType "tourn"]
[EventCountry "ISR"]
[SourceTitle "playchess.com"]
[Source "ChessBase"]
[SourceQuality "1"]
[TimeControl "40/5400+30:1800+30"]

{[%evp 17,72,16,36,29,41,21,65,21,24,0,0,0,0,0,27,-14,-11,-22,-24,-19,-3,-3,0,0,0,-36,-36,-39,-23,-18,0,0,0,-29,-27,-31,-39,-39,-29,-35,-7,-40,-40,-40,-40,-117,-117,-125,-117,-142,-114,-142,-129,-145,-112,-1109,-1105]} 1. e4 {[%emt 1:31:00]} e5 {[%emt 0:00:19]} 2. Nf3 {[%emt 0:00:00]} Nc6 {[%emt 0:00:12]} 3. Bb5 {[%emt 0:00:00][%cal Bf1b5,Bb5a4,Ba4b3][%mdl 32]} a6 {[%emt 0:00:06]} 4. Ba4 {[%emt 0:00:00]} Nf6 {[%emt 0:00:16]} 5. O-O {[%emt 0:00:00]} Be7 {[%emt 0:00:54]} 6. Re1 {[%emt 0:00:00]} b5 {[%emt 0:00:30]} 7. Bb3 {[%emt 0:00:00]} d6 {[%emt 0:00:05]} 8. c3 {[%emt 0:00:00]} O-O {[%emt 0:00:18]} 9. d3 {[%emt 0:00:00][%cal Bd2d3,Bd3d4][%mdl 32]} Nb8 {[%emt 0:13:06]} 10. Nbd2 {[%emt 0:00:00][%cal Bb1d2,Bd2f1,Bf1g3,Bg3f5][%mdl 32] C90: Closed Ruy Lopez with 7...d6: Early deviations.} c5 {[%emt 0:01:10][%cal Bc7c5,Bc5c4][%mdl 32]} 11. Nf1 {[%emt 0:00:00]} (11. a4 $5 {[%cal Ra4b5]}) 11... Nbd7 {[%emt 0:04:43]} 12. d4 {[%emt 0:00:00] White is slightly better.} (12. a4 $5 {[%cal Ra4b5]}) 12... Re8 {[%emt 0:03:18] [#]} 13. d5 $146 {[%emt 0:00:00]} ({Predecessor:} 13. Ng3 Bb7 14. Ng5 c4 15. Bc2 h6 16. Nh3 Bf8 17. f4 exd4 18. cxd4 {1-0 (34) Lopez del Alamo,A (2281)-Suarez Roa,J (2162) Benidorm 2013}) 13... c4 {[%emt 0:01:05]} 14. Bc2 {[%emt 0:00:00]} Qc7 {[%emt 0:00:47]} 15. Ng3 {[%emt 0:00:00]} Bf8 {[%emt 0:03:49]} 16. Nf5 {[%emt 0:00:00]} (16. a4 $5 {[%cal Ra4b5]}) 16... a5 {[%emt 0:07:06][%cal Ba6a5,Ba5a4][%mdl 32]} 17. Qd2 {[%emt 0:00:00]} Nc5 {[%emt 0:07:17][%cal Oc5e4] aiming for ...Ncxe4!} 18. Qg5 {[%emt 0:00:00]} (18. Ng3 {simplifies} g6 19. Qe2 Bg7 20. Bg5) 18... Bxf5 {[%emt 0:06:14]} 19. Qxf5 {[%emt 0:00:00]} Qc8 {[%emt 0:06:27]} 20. Qxc8 {[%emt 0:00:00]} Rexc8 {[%emt 0:00:18]} 21. Bd2 {[%emt 0:00:00]} (21. Nd2 $5 {[%cal Ra2a4]}) 21... a4 {[%emt 0:00:31]} 22. a3 {[%emt 0:00:00]} g6 {[%emt 0:01:36]} 23. Rad1 {[%emt 0:00:00]} Bg7 {[%emt 0:03:23]} 24. h3 {[%emt 0:00:00]} h5 {[%emt 0:05:59]} 25. Ng5 {[%emt 0:00:00][%cal Bf3g5,Bg5h3,Bh3f4][%mdl 32]} Bh6 {[%emt 0:05:57]} 26. h4 {[%emt 0:00:00]} Nfd7 {[%emt 0:03:33]} 27. f4 {[%emt 0:00:00]} exf4 {[%emt 0:02:47]} 28. Bxf4 {[%emt 0:00:00]} f6 {[%emt 0:00:15]} 29. Nh3 {[%emt 0:00:00]} (29. Bxd6 {is more complex.} fxg5 30. e5 Nd3 31. Bxd3 cxd3 32. Rxd3 Bf8 33. Bxf8 Rxf8 34. e6) 29... Bxf4 {[%emt 0:00:17]} 30. Nxf4 {[%emt 0:00:00]} Ne5 {[%emt 0:00:10]} 31. Re3 {[%emt 0:00:00]} (31. Ne2 $15) 31... Re8 $17 {[%emt 0:04:48]} 32. Rg3 {[%emt 0:00:00]} Kf7 {[%emt 0:04:20]} 33. Re3 {[%emt 0:04:43]} Re7 {[%emt 0:02:11]} 34. Rd2 {[%emt 0:04:05]} Rae8 {[%emt 0:01:04] Black is more active.} 35. g3 {[%emt 0:04:29]} Kg7 {[%emt 0:04:38]} 36. Re1 $2 {[%emt 0:00:31][%mdl 8192] [#]} (36. Kg2 $17) 36... Nf3+ {[%emt 0:00:09] Weighted Error Value: White=0.43/Black=0.10 (very precise)} 0-1

[Event "Israeli Women Championship 2022"]
[Site "Yosiah Arad"]
[Date "2022.12.05"]
[Round "1.4"]
[White "Kluchik, Julia"]
[Black "Reprun, Nadejda"]
[Result "1-0"]
[ECO "B13"]
[WhiteElo "1887"]
[BlackElo "1979"]
[Annotator "TA"]
[PlyCount "93"]
[EventDate "2022.12.05"]
[EventType "tourn"]
[EventCountry "ISR"]
[SourceTitle "playchess.com"]
[Source "ChessBase"]
[SourceQuality "1"]
[TimeControl "40/5400+30:1800+30"]

{[%evp 20,92,10,-12,24,23,45,45,45,18,39,31,31,30,41,39,53,52,60,62,81,0,0,0,74,73,92,80,98,75,83,50,57,0,0,0,5,-7,-9,-12,0,0,0,0,0,0,12,48,57,39,114,100,55,154,231,231,244,239,477,463,898,859,785,620,621,594,830,787,1176,1126,1054,1030,29987,29984,29999]} 1. e4 {[%emt 0:00:04]} c6 {[%emt 0:00:06]} 2. d4 {[%emt 0:00:09]} d5 {[%emt 0:00:04]} 3. exd5 {[%emt 0:00:13]} cxd5 {[%emt 0:00:06]} 4. Bd3 {[%emt 0:00:06]} Nc6 {[%emt 0:00:08]} 5. c3 {[%emt 0:00:07]} Nf6 {[%emt 0:00:19]} 6. h3 {[%emt 0:00:38]} e5 {[%emt 0:02:53]} 7. dxe5 {[%emt 0:00:31]} Nxe5 {[%emt 0:00:07]} 8. Nf3 {[%emt 0:00:26]} Nxd3+ {[%emt 0:02:19]} 9. Qxd3 {[%emt 0:00:05]} Be7 {[%emt 0:09:29]} 10. O-O {[%emt 0:03:08]} O-O {[%emt 0:02:33]} 11. Bf4 {[%emt 0:01:23]} h6 {[%emt 0:14:18] B13: Caro-Kann: Exchange Variation and Panov-Botvinnik Attack.} 12. Nbd2 {[%emt 0:02:29]} Bd6 {[%emt 0:01:09]} (12... Re8 {seems wilder.} 13. Rfe1 Qb6 14. a4 Ne4) 13. Bxd6 {[%emt 0:13:52]} Qxd6 {[%emt 0:00:08] [#] White is slightly better.} 14. Rae1 $146 {[%emt 0:00:51]} ({Predecessor:} 14. Rfe1 Bd7 15. Qd4 b6 16. Ne4 Nxe4 17. Rxe4 Rfe8 18. Re5 Rxe5 19. Nxe5 Be6 20. Nd3 {½-½ (56) Velickovic,S (2427)-Cerovic,D (2259) Belgrade 2010}) 14... Bd7 {[%emt 0:08:05]} 15. Re5 {[%emt 0:22:12]} Qb6 {[%emt 0:04:56]} 16. Qc2 {[%emt 0:07:41]} Rac8 {[%emt 0:02:01][%cal Od5d4]} 17. Qb3 {[%emt 0:00:26]} Bb5 {[%emt 0:03:42]} 18. Rfe1 {[%emt 0:01:03]} Qa6 {[%emt 0:00:53]} 19. Nd4 {[%emt 0:02:47]} Bc4 {[%emt 0:03:56]} 20. Qc2 {[%emt 0:19:45] White is more active.} (20. Nxc4 $16 dxc4 21. Qb4) 20... Bd3 $11 {[%emt 0:06:04]} 21. Qb3 {[%emt 0:00:15]} Rc7 {[%emt 0:10:00]} (21... Bc4 $11 22. Nxc4 dxc4) 22. a3 $16 {[%emt 0:06:10]} Qd6 {[%emt 0:04:31]} 23. R5e3 {[%emt 0:07:31]} Qa6 {[%emt 0:04:17]} 24. Qd1 {[%emt 0:00:43]} Bg6 {[%emt 0:02:33]} 25. Qf3 {[%emt 0:00:28]} Qb6 {[%emt 0:01:37]} 26. b4 {[%emt 0:00:23]} ({White should try} 26. R3e2 $14) 26... Rfc8 $11 {[%emt 0:02:22]} 27. g4 {[%emt 0:05:34]} a6 {[%emt 0:02:19]} 28. h4 {[%emt 0:00:07]} Qd6 {[%emt 0:03:49]} 29. g5 {[%emt 0:03:13]} hxg5 {[%emt 0:01:13]} (29... Ne4 {simplifies} 30. Nxe4 dxe4 31. Qh3 Kh8) 30. hxg5 {[%emt 0:00:01]} Ne4 {[%emt 0:00:29]} 31. Nxe4 {[%emt 0:00:07]} dxe4 {[%emt 0:04:03]} 32. Qh3 {[%emt 0:00:08]} Qf4 {[%emt 0:00:58]} 33. Rg3 $1 {[%emt 0:00:20]} Qd2 {[%emt 0:04:12][%csl LRc3,LRe1]} 34. Ree3 {[%emt 0:00:17] [#] Hoping for Kg2.} Rd8 {[%emt 0:00:15]} ({Better is} 34... Qd1+ $1 $14 35. Kh2 Qh5) 35. Qh4 {[%emt 0:01:58]} Rxd4 {[%emt 0:00:25]} 36. Rh3 {[%emt 0:01:10][%csl Gh3][%cal Rh4h8]} Kf8 {[%emt 0:01:01]} (36... f5 $16 37. gxf6 (37. cxd4 Qxd4 38. Re1 Qd2 $14) 37... Qc1+ 38. Kg2 Rd1 39. Qh8+ Kf7 40. fxg7 (40. Qxg7+ Ke6 $11) 40... Rg1+ 41. Kh2 Rh1+ 42. Kg3 Rxh3+ 43. Kxh3 Qf1+ 44. Kg4 Bf5+ 45. Kg5 (45. Kxf5 Qxf2+ 46. Kg4 Qg2+ 47. Kh5 Qh1+ 48. Kg5 Qg2+ 49. Kh4 Qf2+ 50. Kh5 Qf5+ 51. Kh4 Qf2+ 52. Kg4 Qg2+ 53. Rg3 Qe2+ 54. Kg5 Qd2+ 55. Kh5 Qh2+ 56. Kg4 Qe2+ 57. Kh4 Qh2+ 58. Rh3 Qf4+ 59. Kh5 Qf5+ 60. Kh4 Qf4+ 61. Kh5 Qf5+ 62. Kh4 Qf4+ $11) 45... Rc8 46. Kxf5 Qb5+ 47. Kg4 Qd7+ 48. Kg3 (48. Kf4 Qd6+ 49. Kg4 Qe6+ 50. Kg3 Qe5+ 51. f4 Qf5 $16) 48... Rg8 49. Qh5+ (49. Rxe4 Rxg7+ 50. Kh4 Qd6 $18) 49... Kxg7 50. Rxe4 Qd6+ 51. Re5 Kf6+ 52. Kf4 Qd2+ 53. Re3 Qd6+ 54. Ke4 Qe6+ 55. Kf3 Qf5+ 56. Qxf5+ Kxf5) 37. cxd4 $40 {[%emt 0:00:37][%mdl 128] Black must now prevent Qf4. White has strong attack.} Rc1+ {[%emt 0:00:07]} 38. Kg2 {[%emt 0:00:03] [#] Strongly threatening Qf4.} Qd1 $2 {[%emt 0:01:09]} (38... Qxd4 39. Qf4 Qd5) 39. Rh1 {[%emt 0:00:06]} Qc2 {[%emt 0:00:37]} (39... Qxh1+ $142 40. Qxh1 Rxh1) 40. Rxc1 {[%emt 0:00:16]} Qxc1 {[%emt 0:00:02][%mdl 4096] Endgame KQR-KQB} 41. Qh8+ {[%emt 0:30:08]} Ke7 {[%emt 0:30:06]} 42. Qxg7 {[%emt 0:03:59]} Qd1 {[%emt 0:00:53]} 43. Qe5+ {[%emt 0:00:00]} Kf8 {[%emt 0:00:35]} 44. d5 {[%emt 0:00:00][%cal Bd4d5,Bd5d6][%mdl 32] aiming for Kh2.} Qg4+ {[%emt 0:01:04]} 45. Rg3 {[%emt 0:00:00]} Qd7 {[%emt 0:00:00]} 46. d6 {[%emt 0:00:00][%cal Re5h8]} e3 {[%emt 0:00:00]} 47. Qh8# {[%emt 0:00:00] Weighted Error Value: White=0.15 (very precise) /Black=0.46} 1-0

[Event "Israeli Women Championship 2022"]
[Site "Yosiah Arad"]
[Date "2022.12.05"]
[Round "1.5"]
[White "Efroimski, Marsel"]
[Black "Tashkinova, Sofiia"]
[Result "*"]
[WhiteElo "2470"]
[BlackElo "2006"]
[Annotator "TA"]
[PlyCount "29"]
[EventDate "2022.12.05"]
[EventType "tourn"]
[EventCountry "ISR"]
[SourceTitle "playchess.com"]
[Source "ChessBase"]
[SourceQuality "1"]
[TimeControl "40/5400+30:1800+30"]

{[%evp 8,8,17]} 1. e4 {[%emt 0:00:27]} c5 {[%emt 0:00:05]} 2. Nf3 {[%emt 0:00:51]} d6 {[%emt 0:00:04]} 3. d4 {[%emt 0:00:44]} cxd4 {[%emt 0:00:08]} 4. Nxd4 {[%emt 0:01:33]} Nf6 {[%emt 0:00:10] [#] Not much happened in this game.} {Predecessor:} 5. Nc3 $146 a6 6. h3 {B81: Sicilian Scheveningen: Keres Attack.} e6 7. g4 Nfd7 8. g5 b5 9. h4 Bb7 10. Bg2 Be7 11. Be3 Ne5 12. f4 Nc4 13. Bc1 Nc6 14. b3 Qa5 15. Rh3 {0-1 (30) Gukesh,D (2725)-So,W (2760) Kolkata 2022} *

[Event "Israeli Women Championship 2022"]
[Site "Yosiah Arad"]
[Date "2022.12.05"]
[Round "1.5"]
[White "Brusilovski, Lena"]
[Black "Orian, Noga"]
[Result "0-1"]
[ECO "B90"]
[WhiteElo "1800"]
[BlackElo "1947"]
[Annotator "TA"]
[PlyCount "68"]
[EventDate "2022.12.05"]
[EventType "tourn"]
[EventCountry "ISR"]
[SourceTitle "playchess.com"]
[Source "ChessBase"]
[SourceQuality "1"]
[TimeControl "40/5400+30:1800+30"]

{[%evp 19,67,54,67,21,32,35,36,37,22,24,41,0,52,54,70,48,66,26,47,16,69,0,0,-29,-18,-17,-32,-91,-77,-133,-88,-84,-77,-156,-152,-154,-104,-142,-63,-156,-154,-165,-160,-198,-229,-225,-231,-249,-220,-29999]} 1. e4 {[%emt 0:00:27]} c5 {[%emt 0:00:05]} 2. Nf3 {[%emt 0:00:51]} d6 {[%emt 0:00:04]} 3. d4 {[%emt 0:00:44]} cxd4 {[%emt 0:00:08]} 4. Nxd4 {[%emt 0:01:33]} Nf6 {[%emt 0:00:10]} 5. Nc3 {[%emt 0:01:06]} a6 {[%emt 0:00:05]} 6. Be3 {[%emt 0:01:35]} Ng4 {[%emt 0:00:24]} 7. Bg5 {[%emt 0:01:07]} h6 {[%emt 0:00:08]} 8. Bh4 {[%emt 0:00:06]} g5 {[%emt 0:00:04]} 9. Be2 {[%emt 0:00:39]} Ne5 {[%emt 0:01:28]} 10. Bg3 {[%emt 0:00:14]} Bg7 {[%emt 0:00:05]} 11. f4 {[%emt 0:02:41] B90: Sicilian Najdorf: Unusual White 6th moves, 6 Be3 Ng4 and 6 Be3 e5.} (11. Nd5 $14) 11... gxf4 {[%emt 0:01:21]} 12. Bxf4 {[%emt 0:00:04]} Nbc6 {[%emt 0:00:06] White must now prevent ...Nxd4.} 13. Nf5 {[%emt 0:01:13] White is slightly better.} Bxf5 {[%emt 0:01:50]} 14. exf5 {[%emt 0:00:03] [#]} Qa5 $146 {[%emt 0:05:34][%cal Oe5c4]} ({Predecessor:} 14... Rc8 15. Be3 Na5 16. Bd4 Nac6 17. Be3 Na5 18. Rb1 Nec4 19. Bd4 Bxd4 20. Qxd4 Ne5 {1-0 (50) Jurcik,M (2468)-Schiendorfer,E (2274) Rogaska Slatina 2009}) 15. Qd5 {[%emt 0:04:02] Prevents Nc4.} (15. O-O {simplifies} Nd7 16. Rb1 Bxc3 17. bxc3 Rb8 18. Kh1) 15... Qb6 {[%emt 0:03:06]} (15... Qb4 $11 16. O-O Qxb2) 16. O-O-O $1 $14 {[%emt 0:00:59]} Nd7 {[%emt 0:05:22]} 17. Bc4 {[%emt 0:02:54]} Rf8 {[%emt 0:08:20]} 18. Rhe1 {[%emt 0:02:30]} O-O-O {[%emt 0:08:51]} 19. Bb3 {[%emt 0:01:20]} Nc5 {[%emt 0:06:52]} ({Better is} 19... Bxc3 $11 20. bxc3 Nf6) 20. Be3 {[%emt 0:02:20]} (20. Ne4 $14) 20... Qa5 {[%emt 0:05:02]} 21. Bd2 {[%emt 0:08:33][%cal Oc3a4]} Nxb3+ {[%emt 0:01:14]} (21... Bxc3 {simplifies} 22. Bxc3 Nxb3+ 23. axb3 Qxd5 24. Rxd5 Rg8) 22. Qxb3 {[%emt 1:06:29]} Qxf5 {[%emt 0:03:45]} (22... Bxc3 {simplifies} 23. Qxc3 Qxa2 24. b3 Qa3+) 23. Qb6 {[%emt 0:00:00]} (23. g4 $15 Qh7 24. Nd5) 23... e6 {[%emt 0:05:57]} 24. Be3 {[%emt 0:00:00]} ({White should play} 24. Kb1) 24... h5 $40 {[%emt 0:07:27][%mdl 128] Black has strong attack.} 25. Rf1 {[%emt 0:00:00] [#]} Qg6 {[%emt 0:04:57]} 26. Kb1 {[%emt 0:00:00]} (26. Rf4 $142 Bxc3 27. Rc4 Qxg2 28. Rxc3) 26... Bxc3 $17 {[%emt 0:05:52] Dancing on a razor blade.} ({Resist} 26... Qxg2 27. Rg1 Qxh2 28. Rxg7 $18) 27. bxc3 {[%emt 0:00:00]} e5 {[%emt 0:04:25]} ({Stronger than} 27... Qxg2 28. Bh6 $15) (27... h4 $142 28. Rd2 f5) 28. Rf3 {[%emt 0:00:00]} Qe6 {[%emt 0:08:27]} ({Worse is} 28... Qxg2 29. Rf6 $15) (28... f5 $17 {aiming for ...f4.} 29. g3 h4) 29. Rdf1 {[%emt 0:00:00] [#]} (29. Qb3 $15) 29... f5 $1 {[%emt 0:00:40]} 30. Bc1 {[%emt 0:00:00]} Rf7 {[%emt 0:03:37]} 31. Qe3 {[%emt 0:00:00]} Rg8 {[%emt 0:02:16][%cal Bd8g8,Bg8g4,Bg4a4][%mdl 32]} 32. Qe2 {[%emt 0:00:00]} Rg4 {[%emt 0:01:29]} 33. h3 {[%emt 0:00:00]} Ra4 {[%emt 0:01:29][%csl Ga4][%cal Re6a2]} 34. g4 $2 {[%emt 0:00:00]} (34. a3 $19) 34... Qxa2# {[%emt 0:00:08] Weighted Error Value: White=0.55/Black=0.18 (very precise)} 0-1